bitfinex/quotes_ETHUSD_20241105
["timestamp","ask_amount","ask_price","bid_price","bid_amount"]
[1730837211794,0.04825242,2420.2,2419.6,4.13282]
[1730837212036,0.04825242,2420.2,2419.6,8.26563]
[1730837212392,4.13226,2420.0,2419.5,0.8207]
[1730837212609,0.0478414,2419.9,2419.5,0.8207]
[1730837212836,13.75932924,2420.2,2419.5,4.95364]
[1730837213152,4.13219,2420.1,2419.1,3.0]
[1730837213360,0.04797842,2420.0,2419.4,4.13315]
[1730837213648,0.04797842,2420.0,2419.5,4.13303]
[1730837214150,0.04797842,2420.0,2419.6,4.13288]
[1730837214362,0.774,2420.3,2419.7,4.13258]
[1730837214524,0.04825242,2420.2,2419.8,4.13256]
[1730837214709,4.90574,2420.3,2419.8,4.13256]
[1730837214911,4.90574,2420.3,2419.2,0.71937361]
[1730837214912,5.04825242,2420.2,2419.2,0.71937361]
[1730837215151,8.26421,2420.1,2419.5,4.13299]
[1730837215315,0.04836168,2420.0,2419.6,4.1329]
[1730837215872,0.04836168,2420.0,2419.7,4.13273]
[1730837216151,0.04779349,2419.9,2419.7,4.13273]
[1730837216341,4.90582,2420.3,2419.7,4.13264]
[1730837216541,0.04820452,2420.2,2419.6,0.7657]
[1730837216765,4.18025452,2420.2,2419.6,0.7657]
[1730837216964,0.04820452,2420.2,2419.6,5.388468]
[1730837217145,0.04820452,2420.2,2419.7,4.13265]
[1730837217656,4.13211,2420.1,2419.6,4.8986]
[1730837217962,0.04793051,2420.0,2419.6,4.8986]
[1730837218549,0.87912656,2420.0,2419.5,4.13303]
[1730837218770,0.04793051,2420.0,2419.5,4.13308]
[1730837219053,4.13206,2420.1,2419.4,4.13313]
[1730837219227,0.04779349,2419.9,2419.5,4.13304]
[1730837219428,4.13225,2420.0,2419.9,4.1324]
[1730837219429,0.04793051,2420.0,2419.9,4.1324]
[1730837219666,1.67079104,2420.4,2420.2,4.13186]
[1730837220193,1.67079104,2420.4,2420.3,4.13171]
[1730837220571,1.67079104,2420.4,2420.3,8.01553969]
[1730837220757,1.67079104,2420.4,2420.3,8.50291]
[1730837220758,1.04e-06,2420.4,2420.3,8.50291]
[1730837220957,1.25341713,2420.5,2420.4,7.68154]
[1730837221269,1.25341713,2420.5,2420.4,10.07924]
[1730837221578,3.3649291,2420.6,2420.5,0.02]
[1730837221780,2.50672778,2420.9,2420.8,0.01]
[1730837221969,4.14411139,2421.5,2420.8,3.55]
[1730837222295,4.14411139,2421.5,2421.3,4.13001]
[1730837222453,4.14411139,2421.5,2421.3,4.956028]
[1730837222805,4.14411139,2421.5,2421.3,0.826018]
[1730837222946,4.14411139,2421.5,2421.3,4.956028]
[1730837223151,0.01,2421.7,2421.3,0.826018]
[1730837223353,0.04522019,2421.6,2421.3,4.12991]
[1730837224374,0.04522019,2421.6,2421.5,4.12967]
[1730837224585,0.01,2422.2,2421.8,4.12908]
[1730837224902,0.04402805,2422.1,2421.8,8.25812]
[1730837225082,0.04402805,2422.1,2421.8,9.05932]
[1730837225294,0.04402805,2422.1,2421.9,4.12898]
[1730837225455,0.04402805,2422.1,2422.0,4.12881]
[1730837225661,0.04402805,2422.1,2422.0,7.12881]
[1730837225887,2.51672778,2422.4,2422.2,4.12846]
[1730837226108,4.13847,2422.2,2421.8,0.8012]
[1730837226256,0.04305475,2422.3,2421.9,4.12895]
[1730837226461,2.51672778,2422.4,2422.1,4.12862]
[1730837227003,0.04295779,2422.3,2422.1,4.12862]
[1730837227161,0.04295779,2422.3,2421.9,4.12887]
[1730837227570,0.04295779,2422.3,2422.0,4.12879]
[1730837227911,0.04295779,2422.3,2421.9,4.12887]
[1730837228278,0.04295779,2422.3,2421.9,8.25775]
[1730837228477,0.04295779,2422.3,2421.9,4.12887]
[1730837228693,0.04295779,2422.3,2421.9,3.0]
[1730837229018,0.04295779,2422.3,2421.9,7.12884]
[1730837229318,0.04295779,2422.3,2422.2,7.93087]
[1730837230577,0.04295779,2422.3,2422.2,3.8024]
[1730837230979,0.04295779,2422.3,2422.2,7.93087]
[1730837232284,0.04295779,2422.3,2422.2,8.48087]
[1730837232502,0.04295779,2422.3,2422.2,10.17399536]
[1730837232700,2.50672778,2422.4,2422.3,7.6783]
[1730837232869,2.50672778,2422.4,2422.3,7.1283]
[1730837233575,0.84156452,2423.3,2422.7,4.12746]
[1730837233576,0.01,2423.2,2422.7,4.12746]
[1730837233770,0.84156452,2423.3,2422.9,4.12727]
[1730837233771,0.01,2423.3,2422.9,4.12727]
[1730837233972,0.01,2423.3,2422.8,0.7603]
[1730837234166,0.01,2423.3,2422.9,4.12727]
[1730837234396,5.77358452,2423.7,2422.9,0.08254062]
[1730837234618,5.77358452,2423.7,2423.3,4.12659]
[1730837234619,0.01,2423.6,2423.3,4.12659]
[1730837234925,0.0598461,2423.8,2422.9,3.08254062]
[1730837234926,0.0598461,2423.8,2422.9,3.0]
[1730837235073,0.0598461,2423.8,2423.6,4.12598]
[1730837236274,0.04261645,2423.7,2423.6,11.43787356]
[1730837236529,0.04261645,2423.7,2423.6,12.20437356]
[1730837236818,0.0598461,2423.8,2423.7,8.43242]
[1730837237316,0.0598461,2423.8,2423.7,7.88242]
[1730837237810,0.0598461,2423.8,2423.7,8.43242]
[1730837238023,0.0598461,2423.8,2423.7,7.89242]
[1730837238373,0.0598461,2423.8,2423.7,7.88242]
[1730837238575,0.0598461,2423.8,2423.7,10.09138059]
[1730837239539,0.0598461,2423.8,2423.7,10.64138059]
[1730837240241,6.1e-06,2423.8,2423.7,10.64138059]
[1730837240545,6.1e-06,2423.8,2423.7,10.09138059]
[1730837241245,6.1e-06,2423.8,2423.7,10.64138059]
[1730837242661,6.1e-06,2423.8,2423.7,10.09138059]
[1730837242823,6.1e-06,2423.8,2423.7,4.88242]
[1730837243152,0.04165692,2423.8,2423.7,4.88242]
[1730837243360,0.04165692,2423.8,2423.6,4.12598]
[1730837243361,6.1e-06,2423.8,2423.4,4.12631]
[1730837243508,6.1e-06,2423.8,2423.4,8.25263]
[1730837243509,0.0417231,2423.8,2423.4,8.25263]
[1730837243711,0.0417231,2423.8,2423.4,4.12631]
[1730837243712,6.1e-06,2423.8,2423.4,4.12631]
[1730837243915,0.04141683,2423.7,2423.4,4.12631]
[1730837244143,6.1e-06,2423.8,2423.4,4.12631]
[1730837244649,6.1e-06,2423.8,2423.3,0.8191]
[1730837244650,0.04029162,2423.7,2423.3,0.8191]
[1730837244826,0.04029162,2423.7,2423.3,3.0]
[1730837245030,4.63365577,2423.7,2423.2,4.12664]
[1730837245238,0.04097826,2423.6,2423.2,8.25332]
[1730837245441,0.04097826,2423.6,2423.2,4.12664]
[1730837245668,0.04097826,2423.6,2423.5,4.12626]
[1730837245948,0.04097826,2423.6,2423.5,6.34162078]
[1730837246158,6.1e-06,2423.8,2423.5,6.34162078]
[1730837246159,6.1e-06,2423.8,2423.7,4.13592]
[1730837246477,6.1e-06,2423.8,2423.7,7.12592]
[1730837247143,6.1e-06,2423.8,2423.6,4.12607]
[1730837247351,6.1e-06,2423.8,2423.6,8.3345427]
[1730837247673,0.03631729,2423.7,2423.6,7.12596]
[1730837248016,6.1e-06,2423.8,2423.4,7.12633]
[1730837248273,6.1e-06,2423.8,2423.7,4.12592]
[1730837248767,0.03628459,2423.8,2423.7,4.12592]
[1730837248919,6.1e-06,2423.8,2423.6,4.12609]
[1730837249117,6.1e-06,2423.8,2423.6,8.25218]
[1730837249328,6.1e-06,2423.8,2423.6,4.12609]
[1730837249952,6.1e-06,2423.8,2423.7,4.12592]
[1730837250143,6.1e-06,2423.8,2423.7,7.97572069]
[1730837250348,6.1e-06,2423.8,2423.7,8.44322]
[1730837252622,6.1e-06,2423.8,2423.7,7.90322]
[1730837253870,6.1e-06,2423.8,2423.7,8.45322]
[1730837254068,6.1e-06,2423.8,2423.7,9.8236661]
[1730837254557,6.1e-06,2423.8,2423.7,10.93127404]
[1730837254763,6.1e-06,2423.8,2423.7,10.42401152]
[1730837256419,6.1e-06,2423.8,2423.7,9.8236661]
[1730837258822,6.1e-06,2423.8,2423.7,9.8136661]
[1730837259131,6.1e-06,2423.8,2423.7,14.13555966]
[1730837259651,6.1e-06,2423.8,2423.7,18.48655966]
[1730837259826,6.1e-06,2423.8,2423.7,14.13555966]
[1730837261157,6.1e-06,2423.8,2423.7,14.66740508]
[1730837261318,6.1e-06,2423.8,2423.7,14.12051122]
[1730837261836,0.7914,2424.9,2424.8,4.12405]
[1730837262029,0.7914,2424.9,2424.7,4.12407]
[1730837262227,0.7914,2424.9,2424.7,4.12408]
[1730837262520,0.8014,2424.9,2424.5,7.12445]
[1730837262725,0.8014,2424.9,2424.5,4.12455]
[1730837262726,0.01,2424.7,2424.5,4.12455]
[1730837263125,0.01,2424.7,2424.3,8.24953]
[1730837263323,0.01,2424.7,2424.3,4.12474]
[1730837263636,0.0598461,2425.0,2424.2,3.7649997]
[1730837263639,0.8289461,2425.0,2424.2,3.7649997]
[1730837263842,0.8289461,2425.0,2423.9,4.87568]
[1730837263843,0.8189461,2425.0,2424.6,4.1243]
[1730837264047,0.8189461,2425.0,2424.6,4.12435]
[1730837264225,0.8289461,2425.0,2424.6,4.12435]
[1730837264562,0.8289461,2425.0,2424.6,8.24864]
[1730837264747,0.8289461,2425.0,2424.6,4.12429]
[1730837264951,0.8289461,2425.0,2424.4,4.12461]
[1730837264952,0.8289461,2425.0,2424.5,4.12442]
[1730837265292,0.8289461,2425.0,2424.3,3.0]
[1730837265620,1.32417871,2425.0,2424.6,4.12426]
[1730837266142,0.8289461,2425.0,2424.7,4.12422]
[1730837266349,0.8289461,2425.0,2424.6,8.24855]
[1730837266836,0.8289461,2425.0,2424.6,4.12426]
[1730837267039,0.8289461,2425.0,2424.6,8.24856]
[1730837267343,0.8289461,2425.0,2424.6,8.24855]
[1730837267545,1.32417771,2425.0,2424.6,8.24855]
[1730837268123,1.32417771,2425.0,2424.6,4.12426]
[1730837268328,0.8189461,2425.0,2424.8,4.12402]
[1730837269670,2.5267969,2425.9,2424.8,4.12402]
[1730837269671,2.52544218,2425.6,2424.9,3.7649997]
[1730837269828,2.94624794,2425.8,2425.7,4.12252]
[1730837270178,2.94624794,2425.8,2425.7,7.8875197]
[1730837270382,1.68387766,2425.9,2425.8,4.12235]
[1730837271035,0.8679461,2426.2,2426.1,4.12184]
[1730837271973,0.0748461,2426.2,2426.1,4.12184]
[1730837273782,0.0748461,2426.2,2426.1,7.20426152]
[1730837274082,0.0748461,2426.2,2426.1,7.76426152]
[1730837275283,6.1e-06,2426.2,2426.1,9.12495752]
[1730837275460,6.1e-06,2426.2,2426.1,10.82615324]
[1730837275660,6.1e-06,2426.2,2426.1,11.48755282]
[1730837276036,0.0598461,2427.4,2426.7,0.7593]
[1730837276239,0.0598461,2427.4,2427.3,4.1198]
[1730837276438,0.0598461,2427.4,2427.2,4.11996]
[1730837276660,0.0598461,2427.4,2427.2,4.11997]
[1730837277168,0.0598461,2427.4,2427.1,7.12008]
[1730837277365,0.0598461,2427.4,2427.2,4.11991]
[1730837277959,0.0598461,2427.4,2427.1,7.12013]
[1730837278571,0.0598461,2427.4,2427.1,3.0]
[1730837278770,0.55932971,2427.4,2426.4,5.03508711]
[1730837279010,0.8036,2427.0,2426.4,0.757]
[1730837279152,0.8036,2427.0,2426.8,8.2411]
[1730837279495,0.8036,2427.0,2426.6,4.12087]
[1730837280188,0.8036,2427.0,2426.4,11.24245]
[1730837280189,0.01,2426.9,2426.4,11.24245]
[1730837280390,0.01,2426.9,2426.5,4.12113]
[1730837280598,0.8036,2427.0,2426.7,4.12081]
[1730837280797,1.69823455,2427.6,2426.6,0.08241207]
[1730837280798,4.13304599,2429.4,2428.7,4.91622]
[1730837280998,2.78803363,2430.1,2429.2,4.93408]
[1730837280999,0.8937191,2429.3,2429.2,4.93408]
[1730837281372,0.01,2430.4,2429.7,4.11569]
[1730837281706,0.01,2430.4,2429.8,7.11547]
[1730837281909,0.01,2430.4,2429.8,4.11547]
[1730837282206,4.1762274,2430.7,2429.5,3.0]
[1730837282207,0.01,2430.6,2429.5,3.0]
[1730837282503,0.01,2430.6,2430.0,3.0]
[1730837282720,0.01,2430.4,2429.8,4.11553]
[1730837282866,0.01,2430.4,2429.7,4.11557]
[1730837283066,0.01,2430.4,2429.8,3.0]
[1730837283279,0.01,2430.4,2429.8,7.11554]
[1730837283476,0.01,2430.2,2429.6,3.0]
[1730837283677,0.01,2430.0,2429.7,0.08229893]
[1730837283912,0.01,2430.0,2429.5,4.19832721]
[1730837284172,0.01,2430.0,2429.5,0.08230721]
[1730837284522,0.01,2430.0,2429.5,4.19824721]
[1730837284523,0.503261,2430.0,2429.5,4.19824721]
[1730837284826,0.01,2430.0,2429.4,4.11621]
[1730837284977,0.01,2430.0,2429.3,4.1164]
[1730837285596,0.01,2430.0,2429.5,4.11595]
[1730837286021,0.7693,2429.7,2429.4,0.08230285]
[1730837286219,0.7693,2429.7,2429.2,0.0823154]
[1730837286519,0.01,2430.1,2429.6,4.11587]
[1730837287598,5.032154,2430.1,2429.4,4.1161]
[1730837287785,0.01,2429.9,2429.5,4.11605]
[1730837288194,0.01,2429.9,2429.4,4.1161]
[1730837288616,0.01,2429.9,2429.5,0.08230819]
[1730837289544,0.01,2429.9,2429.4,4.11623]
[1730837289833,0.01,2429.9,2429.5,0.08230905]
[1730837290197,0.9247374,2429.9,2429.5,0.08230905]
[1730837291234,0.01,2429.9,2429.5,0.08230905]
[1730837291434,0.8119,2429.8,2429.5,0.08230905]
[1730837291595,0.01,2429.7,2429.3,4.19870918]
[1730837292336,0.01,2429.7,2429.4,4.11623]
[1730837292637,0.01,2429.7,2429.5,0.08231309]
[1730837292938,0.01,2429.7,2429.3,4.19870321]
[1730837293901,0.01,2429.7,2429.4,4.11614]
[1730837294099,0.01,2429.7,2428.9,9.20650711]
[1730837294100,0.8119,2429.8,2429.5,0.08231313]
[1730837294334,0.8119,2429.8,2429.0,3.0]
[1730837294335,0.7652,2430.2,2429.3,7.27808711]
[1730837294497,0.7652,2430.2,2429.7,4.11563]
[1730837294697,0.01,2430.4,2429.6,3.0]
[1730837295009,0.01,2430.4,2429.9,4.11527]
[1730837295413,0.909409,2430.4,2430.0,4.11519]
[1730837295619,0.909409,2430.4,2429.9,4.11527]
[1730837295916,0.01,2430.2,2429.7,4.11562]
[1730837296336,0.01,2430.2,2429.7,8.23125]
[1730837296541,0.01,2430.2,2429.8,4.11547]
[1730837296747,0.01,2430.2,2429.7,4.11562]
[1730837297049,0.01,2430.2,2429.8,4.11555]
[1730837297356,0.01,2429.9,2429.5,4.11596]
[1730837297511,0.8049,2430.0,2429.7,4.11572]
[1730837297854,0.8049,2430.0,2429.7,4.11564]
[1730837298023,0.8049,2430.0,2429.5,4.11597]
[1730837298220,0.01,2429.9,2429.6,0.08230408]
[1730837299051,0.01,2429.9,2429.6,4.19818408]
[1730837299256,0.01,2429.9,2429.6,0.08230408]
[1730837299562,0.01,2429.9,2429.6,0.0823069]
[1730837299909,0.8049,2430.0,2429.9,4.11539]
[1730837300521,0.8049,2430.0,2429.7,4.1156]
[1730837300937,0.01,2429.9,2429.5,4.11606]
[1730837301140,0.01,2429.9,2429.6,7.11582]
[1730837301342,0.01,2429.9,2429.7,4.1157]
[1730837302156,0.01,2430.2,2430.0,4.11521]
[1730837302357,0.01,2430.2,2429.8,4.11544]
[1730837302655,0.01,2430.0,2429.8,4.11544]
[1730837303783,0.8309,2430.0,2429.6,3.0]
[1730837303964,0.8309,2430.0,2429.7,0.08230889]
[1730837303965,0.01,2429.8,2429.7,0.08230889]
[1730837304129,0.01,2429.8,2429.7,4.11573]
[1730837304491,0.8209,2430.0,2429.7,0.08230359]
[1730837304784,0.01,2430.2,2429.4,3.0]
[1730837304785,0.01,2430.2,2430.0,4.1152]
[1730837305068,0.7938,2430.3,2427.4,2.06513688]
[1730837305069,0.7938,2429.7,2428.7,1.313422]
[1730837305227,0.01,2429.6,2429.5,4.11607]
[1730837305432,0.01,2430.0,2429.6,4.11579]
[1730837305656,0.01,2430.0,2429.6,8.23157]
[1730837305891,0.01,2430.0,2429.7,0.08230391]
[1730837306037,0.01,2430.0,2429.7,4.11563]
[1730837306238,0.01,2430.0,2429.8,0.08230131]
[1730837306437,0.01,2430.0,2429.8,4.19783131]
[1730837306644,0.01,2430.0,2429.7,4.11562]
[1730837307031,0.01,2429.7,2429.5,4.11597]
[1730837307233,0.01,2429.9,2429.6,0.0823093]
[1730837307469,0.01,2429.9,2429.6,4.1159]
[1730837307972,0.01,2429.7,2429.4,4.11611]
[1730837308172,0.01,2429.7,2429.5,0.08230261]
[1730837308341,0.01,2429.9,2429.5,0.08230261]
[1730837308534,0.01,2429.6,2429.5,0.08230261]
[1730837308978,0.01,2429.7,2429.5,4.11596]
[1730837309268,0.01,2429.7,2429.5,0.08231202]
[1730837309446,4.07543,2429.9,2429.5,0.08231202]
[1730837309657,0.89844,2429.9,2429.3,7.11631]
[1730837309834,5.01393,2429.9,2429.4,0.08231015]
[1730837310470,4.11557,2429.8,2429.4,0.08231015]
[1730837310670,4.11566,2429.8,2429.0,0.7795]
[1730837310978,0.89844,2429.9,2429.0,0.7795]
[1730837311180,4.11582,2429.7,2429.1,4.11675]
[1730837311478,4.11582,2429.7,2429.0,3.7795]
[1730837311479,0.501371,2429.8,2429.3,4.11624]
[1730837311677,4.616931,2429.8,2429.2,8.23299]
[1730837311974,4.616931,2429.8,2429.3,4.11629]
[1730837312559,4.616931,2429.8,2429.0,3.7795]
[1730837312560,4.11597,2429.6,2429.1,4.11665]
[1730837312760,0.7965,2429.7,2429.4,4.11613]
[1730837312961,0.7965,2429.7,2429.2,8.2329]
[1730837313150,0.7965,2429.7,2429.2,4.11641]
[1730837313889,0.7965,2429.7,2429.3,4.1164]
[1730837315136,0.7465,2429.7,2429.3,4.1164]
[1730837315837,1.232708,2429.7,2429.2,4.11641]
[1730837315987,4.11643,2429.3,2428.0,1.28655425]
[1730837316187,4.11753,2428.7,2428.1,4.11843]
[1730837316431,4.11753,2428.7,2428.1,4.11831]
[1730837316733,4.11695,2429.0,2428.4,4.11782]
[1730837316916,4.11669,2429.2,2428.6,4.11749]
[1730837317238,4.11566,2429.8,2429.2,4.11651]
[1730837317416,4.11566,2429.8,2429.2,8.23302]
[1730837317621,4.11575,2429.7,2429.0,8.23364]
[1730837317916,4.11521,2430.1,2429.4,4.11608]
[1730837318116,4.11528,2430.0,2429.4,4.11608]
[1730837318435,4.94262,2429.9,2429.3,8.2327]
[1730837318618,0.8272,2429.9,2429.6,4.1158]
[1730837318934,4.11576,2429.7,2429.1,7.11664]
[1730837319088,4.94269,2429.9,2429.1,7.11664]
[1730837319089,4.94269,2429.9,2429.3,4.11638]
[1730837319638,4.11574,2429.7,2429.1,7.11664]
[1730837320195,4.11591,2429.6,2428.9,4.98237534]
[1730837320395,4.11591,2429.6,2429.1,4.11673]
[1730837320898,0.8272,2429.9,2428.9,4.98240534]
[1730837321101,0.8272,2429.9,2429.1,0.829]
[1730837321315,4.94259,2429.9,2429.2,4.11642]
[1730837321633,4.89259,2429.9,2429.3,0.494542]
[1730837321787,4.89259,2429.9,2429.1,3.0]
[1730837321788,4.89264,2429.9,2429.1,3.0]
[1730837321988,4.11572,2429.8,2429.2,4.11655]
[1730837322402,4.11575,2429.7,2429.2,4.11655]
[1730837323235,4.11575,2429.7,2429.1,7.11658]
[1730837323415,4.11617,2429.5,2429.0,3.0]
[1730837323631,4.11617,2429.5,2428.9,4.11698]
[1730837323931,4.11627,2429.4,2428.9,4.11695]
[1730837324685,4.11617,2429.5,2428.9,4.11695]
[1730837324886,8.721015,2429.7,2428.9,4.11695]
[1730837325090,0.489295,2429.7,2429.0,4.11692]
[1730837325311,4.11619,2429.5,2428.9,5.46412189]
[1730837325558,0.7518,2429.4,2429.1,4.11672]
[1730837325734,0.7518,2429.4,2428.9,4.11695]
[1730837326233,4.1165,2429.3,2428.8,3.0]
[1730837326437,4.86804,2429.4,2428.9,4.11708]
[1730837326806,4.11668,2429.2,2428.8,3.0]
[1730837327134,0.7518,2429.4,2428.9,4.11707]
[1730837327294,4.11645,2429.3,2428.8,3.08233624]
[1730837327490,8.23299,2429.3,2428.8,3.08233624]
[1730837327718,4.11645,2429.3,2428.8,3.0]
[1730837328032,8.23295,2429.3,2428.8,3.0]
[1730837328231,4.11676,2429.1,2428.6,3.0]
[1730837328732,4.11669,2429.2,2428.6,7.11759]
[1730837328916,4.11669,2429.2,2428.6,11.23508]
[1730837329241,5.015005,2429.3,2428.8,4.11723]
[1730837329539,4.11653,2429.3,2428.8,4.11723]
[1730837329701,4.11653,2429.3,2428.8,8.2344]
[1730837329891,4.11653,2429.3,2428.8,4.11717]
[1730837330091,8.2331,2429.3,2428.8,4.11717]
[1730837330313,4.11677,2429.1,2428.6,3.0]
[1730837330512,4.528447,2429.1,2428.6,7.1175]
[1730837330719,4.11677,2429.1,2428.6,7.0675]
[1730837330920,4.11648,2429.3,2428.7,4.19972338]
[1730837331102,0.7518,2429.4,2428.7,0.08234338]
[1730837331405,0.8145,2429.7,2429.3,4.11629]
[1730837331587,0.8145,2429.7,2429.4,4.1162]
[1730837331793,0.8145,2429.7,2429.3,4.11641]
[1730837331989,0.8145,2429.7,2429.2,8.23289]
[1730837332213,4.93023,2429.7,2429.2,8.23289]
[1730837332431,4.11591,2429.6,2429.2,4.11643]
[1730837332633,4.11591,2429.6,2429.1,4.11674]
[1730837332935,4.11591,2429.6,2429.0,4.11679]
[1730837333138,4.11591,2429.6,2428.7,4.11728]
[1730837333139,4.11647,2429.3,2428.7,4.11728]
[1730837333343,4.11647,2429.3,2428.8,3.0]
[1730837333655,4.11618,2429.5,2429.0,4.11682]
[1730837334122,4.93035,2429.7,2429.2,4.11657]
[1730837334308,4.93035,2429.7,2429.1,4.11675]
[1730837334309,4.1159,2429.6,2429.1,4.11675]
[1730837334501,4.1159,2429.6,2429.0,4.11682]
[1730837334722,4.11607,2429.5,2429.0,4.11682]
[1730837335136,4.11607,2429.5,2428.8,4.11713]
[1730837335137,4.11627,2429.4,2428.9,4.11704]
[1730837335298,4.11676,2429.1,2428.7,3.0]
[1730837335492,0.7998,2429.2,2428.7,4.11741]
[1730837335718,4.91645,2429.2,2428.6,4.11747]
[1730837335925,4.91645,2429.2,2428.6,5.323619]
[1730837336642,0.7998,2429.2,2428.6,5.323619]
[1730837336795,0.7998,2429.2,2428.7,4.11742]
[1730837336996,4.91649,2429.2,2428.7,4.11742]
[1730837337739,4.91638,2429.2,2428.7,4.11742]
[1730837338126,4.91638,2429.2,2428.6,5.323619]
[1730837338314,4.11685,2429.1,2428.6,5.323619]
[1730837338897,0.7998,2429.2,2428.6,5.323619]
[1730837339203,0.7998,2429.2,2428.7,4.7322419]
[1730837339616,4.91647,2429.2,2428.7,4.7322419]
[1730837339940,4.11692,2429.0,2428.7,0.6149819]
[1730837340147,4.11734,2428.8,2428.2,4.86964]
[1730837340314,4.11746,2428.7,2428.2,8.98782]
[1730837340516,4.11703,2429.0,2428.0,4.8701]
[1730837340849,4.11709,2428.9,2428.4,8.23565]
[1730837341235,4.11709,2428.9,2428.4,4.11781]
[1730837341435,4.11692,2429.0,2428.5,4.11772]
[1730837341618,2.07186577,2429.2,2428.9,4.117]
[1730837342103,1.27206577,2429.2,2429.1,4.11675]
[1730837342440,1.27206577,2429.2,2429.1,4.528425]
[1730837342617,1.27206577,2429.2,2429.1,7.61075308]
[1730837342816,1.27206577,2429.2,2429.1,7.528425]
[1730837343209,1.27206577,2429.2,2429.1,8.291425]
[1730837345757,4.11524,2430.0,2429.4,4.11613]
[1730837345961,4.11552,2429.9,2429.4,4.11613]
[1730837346273,4.11561,2429.8,2429.3,7.11636]
[1730837346553,4.11561,2429.8,2429.3,3.0]
[1730837346923,4.11552,2429.9,2429.4,4.1162]
[1730837347458,9.50307577,2429.9,2429.4,4.1162]
[1730837347960,4.11588,2429.7,2429.3,3.0]
[1730837348166,5.38754577,2429.9,2429.1,4.174675]
[1730837348327,5.38754577,2429.9,2429.4,4.11621]
[1730837348529,5.38754577,2429.9,2429.4,4.11615]
[1730837348742,5.77e-06,2429.9,2429.8,0.7926]
[1730837348965,2.12000908,2430.2,2430.1,4.11505]
[1730837349165,0.0592891,2430.6,2430.5,7.11437]
[1730837349743,0.0592891,2430.6,2430.5,8.37488063]
[1730837350945,0.0592891,2430.6,2430.5,1.26051063]
[1730837351146,0.0592891,2430.6,2430.5,4.11437]
[1730837351933,0.0592891,2430.6,2430.4,4.11454]
[1730837352084,0.0592891,2430.6,2430.2,7.1148]
[1730837352289,4.9729291,2430.6,2430.0,3.0]
[1730837352443,0.8586891,2430.6,2430.1,4.11491]
[1730837352778,4.11449,2430.5,2429.8,4.11543]
[1730837352986,4.9728991,2430.6,2429.9,4.19757624]
[1730837353137,4.11471,2430.4,2429.9,0.08229624]
[1730837353344,4.11471,2430.4,2429.7,4.11565]
[1730837353345,4.11451,2430.5,2429.7,4.11565]
[1730837353689,4.11448,2430.5,2429.7,4.11561]
[1730837353893,4.11467,2430.4,2429.8,4.11546]
[1730837354194,0.90878391,2430.4,2429.7,4.11573]
[1730837354339,5.02333391,2430.4,2429.7,4.11573]
[1730837354695,9.13798391,2430.4,2429.7,8.23132]
[1730837354985,0.90878391,2430.4,2429.6,0.8136]
[1730837355183,0.8011,2430.1,2429.5,4.11594]
[1730837355337,0.8011,2430.1,2429.6,4.11586]
[1730837355537,0.8011,2430.1,2429.7,4.11571]
[1730837355754,0.8011,2430.1,2429.7,4.1980216]
[1730837356196,4.11537,2430.0,2429.3,4.91948]
[1730837356365,4.11537,2430.0,2429.4,4.11622]
[1730837356565,8.23074,2430.0,2429.4,4.11622]
[1730837356769,0.8011,2430.1,2429.4,0.94531675]
[1730837356984,0.8011,2430.1,2429.3,0.8032]
[1730837357166,0.0592891,2430.6,2430.0,4.11522]
[1730837357501,0.803,2430.5,2429.8,4.11549]
[1730837357700,4.1148,2430.3,2429.8,4.11549]
[1730837358001,0.803,2430.5,2429.8,4.11549]
[1730837358002,8.22937,2430.4,2429.8,4.11545]
[1730837358352,0.803,2430.5,2429.8,0.823123]
[1730837358557,0.803,2430.5,2429.7,0.08230068]
[1730837358558,0.803,2430.5,2430.1,4.11503]
[1730837358758,0.803,2430.5,2429.9,4.11539]
[1730837359169,0.803,2430.5,2430.0,0.08229628]
[1730837359378,0.803,2430.5,2429.9,4.1153]
[1730837359595,4.91746,2430.5,2429.9,4.1153]
[1730837359893,4.91746,2430.5,2429.8,3.0]
[1730837359894,4.11476,2430.3,2429.8,3.0]
[1730837360097,4.11456,2430.4,2429.8,3.0]
[1730837360299,4.11456,2430.4,2429.9,4.1153]
[1730837360871,4.11503,2430.2,2429.7,3.0]
[1730837361075,8.23006,2430.2,2429.7,3.0]
[1730837361279,8.23003,2430.2,2429.7,3.0]
[1730837361572,8.23005,2430.2,2429.7,3.0]
[1730837361764,4.115,2430.2,2429.7,3.0]
[1730837362557,8.23004,2430.2,2429.6,7.11581]
[1730837362797,8.23004,2430.2,2429.3,0.8032]
[1730837362798,0.823004,2430.2,2429.3,4.9195]
[1730837363001,4.11551,2429.9,2429.3,4.91945]
[1730837363219,0.8006,2430.1,2429.4,4.11624]
[1730837363534,0.8006,2430.1,2429.5,4.19834987]
[1730837363680,0.8006,2430.1,2429.4,4.11624]
[1730837363681,0.8006,2430.1,2429.6,4.11587]
[1730837364017,4.91569,2430.1,2429.6,4.11581]
[1730837364216,4.91569,2430.1,2429.5,7.11606]
[1730837364516,0.8006,2430.1,2429.6,4.11578]
[1730837364712,0.8006,2430.1,2429.3,0.8032]
[1730837365187,0.8006,2430.1,2429.5,3.0]
[1730837365390,0.8006,2430.1,2429.4,3.08231321]
[1730837365717,4.11541,2429.9,2429.5,3.0]
[1730837365922,4.11521,2430.1,2429.5,4.1159]
[1730837366071,0.8006,2430.3,2429.8,3.0]
[1730837366277,0.8006,2430.3,2429.9,4.11523]
[1730837366488,4.91533,2430.3,2429.8,3.0]
[1730837366789,4.91533,2430.3,2429.7,7.11573]
[1730837366790,4.1149,2430.2,2429.7,7.11573]
[1730837367471,4.11517,2430.1,2429.7,3.0]
[1730837367677,4.11517,2430.1,2429.7,7.11572]